Cogmind - Beta 14 @@@ ROGUE MODE // 2025.03.29 @ 17:03:12 Player: saltine Result: Destroyed by X-62 Marksman with Gauss Rifle Performance ------------- Evolutions (4) 2000 Regions Visited (15) 3000 Robots Destroyed (193) 965 Value Destroyed (9109) 9109 Prototype IDs (7) 140 Alien Tech Used (0) 0 Bonus (5449) 5449 TOTAL SCORE: 20663 Bonus ------- High Alert Combat Kills 1175 Follower Combat Kills 623 Entered Garrisons 800 Used RIF Installer 2500 Entered DSFs 500 Friendly Fire -149 Cogmind --------- Core Integrity 0/850 Matter 80/300 Energy 4/100 System Corruption 34% Temperature Cool (58) Movement Immobile (Siege) Location -6/Garrison Parts ------- > --- POWER (1) -------- Fusion Compressor > --- PROPULSION (4) --- Improved Heavy Treads Improved Heavy Treads > --- UTILITY (8) ------ Power Amplifier Huge Storage Unit Advanced Sensor Array Improved Hacking Suite Relay Coupler [Grunt] (7) Relay Coupler [Brawler] (4) > --- WEAPON (2) ------- Ion Burst Cannon > --- INVENTORY (25) --- Improved Heavy Treads Advanced Heat Sink Matter Compressor (250) Core Analyzer Transmission Jammer Hacking Suite Relay Coupler [Grunt] (36) Relay Coupler [Duelist] (26) Relay Coupler [Sentry] (18) Heavy Laser Ion Burst Cannon Assault Cannon Remote Datajack Improved Remote Datajack Peak State ------------ > --- POWER ------------ Light Angular Momentum Engine > --- PROPULSION ------- Improved Heavy Treads Improved Heavy Treads > --- UTILITY ---------- Improved Cooling System Coolant Injector Huge Storage Unit Hacking Suite Improved Hacking Suite Relay Coupler [Grunt] Relay Coupler [Sentry] Relay Coupler [Heavy] > --- WEAPON ----------- Ion Burst Cannon Improved Remote Datajack > --- INVENTORY -------- Fusion Compressor Improved Heavy Treads Improved Heavy Treads Power Amplifier Advanced Heat Sink Matter Compressor Advanced Sensor Array Core Analyzer Transmission Jammer Improved Propulsion Shielding Hardened Medium Armor Plating Hacking Suite Relay Coupler [Grunt] Relay Coupler [Brawler] Relay Coupler [Duelist] Relay Coupler [Sentry] Heavy Laser Ion Burst Cannon Ion Burst Cannon Ion Burst Cannon Assault Cannon Rocket Launcher Remote Datajack [Rating: 86] Favorites ----------- Power Angular Momentum Engine Engine Angular Momentum Engine Power Core Light Nuclear Core Reactor Antimatter Reactor Propulsion Light Treads Treads Light Treads Leg Aluminum Leg Utility Improved Cooling System Device Improved Cooling System Storage Huge Storage Unit Processor Transport Network Coupler Hackware Hacking Suite Protection Hardened Medium Armor Plating Weapon Heavy Plasma Cannon Energy Gun Medium Laser Energy Cannon Heavy Plasma Cannon Ballistic Gun Assault Rifle Ballistic Cannon Assault Cannon Launcher Rocket Launcher Special Weapon Remote Datajack Impact Weapon Makeshift Hammer Special Melee Weapon Improved Datajack Build | -11 -10 -10 -9 -9 -9 -8 -8 -8 -8 -7 -7 -6 -6 -6 -6 ------- Run | Yrd Mat Min Mat Sto Gar Mat Gar Mat Gar Fac DSF Fac Was Fac Gar Slots Evolved 8 | . . . 2 . . 2 . . . 2 . 2 . . . Power . | . . . . . . . . . . . . . . . . Propulsion 2 | . . . . . . 1 . . . 1 . . . . . Utility 6 | . . . 2 . . 1 . . . 1 . 2 . . . Weapon . | . . . . . . . . . . . . . . . . Parts Attached 209 | . 9 1 2 6 32 9 13 5 13 2 18 13 4 36 46 Power 17 | . 1 . . . 2 . 2 . 1 . . 2 . 2 7 Engine 10 | . 1 . . . 1 . 2 . 1 . . 2 . 1 2 Core 6 | . . . . . 1 . . . . . . . . . 5 Reactor 1 | . . . . . . . . . . . . . . 1 . Propulsion 39 | . 3 . . 2 6 1 5 2 2 1 4 . . 6 7 Treads 38 | . 2 . . 2 6 1 5 2 2 1 4 . . 6 7 Leg 1 | . 1 . . . . . . . . . . . . . . Wheel . | . . . . . . . . . . . . . . . . Hover . | . . . . . . . . . . . . . . . . Flight . | . . . . . . . . . . . . . . . . Utility 78 | . 5 1 2 2 5 4 4 2 3 1 11 8 2 15 13 Device 30 | . 2 1 1 . 1 1 . 1 1 1 5 2 1 6 7 Storage 3 | . 2 . . . 1 . . . . . . . . . . Processor 3 | . 1 . 1 . . . . . . . 1 . . . . Hackware 15 | . . . . . 1 . 1 . 1 . 4 2 . 2 4 Protection 27 | . . . . 2 2 3 3 1 1 . 1 4 1 7 2 Artifact . | . . . . . . . . . . . . . . . . Weapon 75 | . . . . 2 19 4 2 1 7 . 3 3 2 13 19 Energy Gun 3 | . . . . 2 . . . . . . . . . . 1 Energy Cannon 30 | . . . . . 5 1 1 1 1 . 1 . 1 7 12 Ballistic Gun 8 | . . . . . 8 . . . . . . . . . . Ballistic Cannon 8 | . . . . . . 1 1 . 4 . . 2 . . . Launcher 11 | . . . . . 1 2 . . 1 . 1 . . 4 2 Special Weapon 9 | . . . . . . . . . . . 1 1 1 2 4 Impact Weapon 3 | . . . . . 3 . . . . . . . . . . Slashing Weapon . | . . . . . . . . . . . . . . . . Piercing Weapon . | . . . . . . . . . . . . . . . . Special Melee Weapon 3 | . . . . . 2 . . . 1 . . . . . . Unidentified Prototypes 2 | . . . . . . 1 . . . . . . . 1 . Corrupted Parts 1 | . . . . . . . . . . . . . . 1 . System Corruption 6 | . . . . . . . . . . . . . . 6 . Parts Lost 56 | . 1 . . 3 8 2 7 . 5 . 1 2 . 9 18 Power 11 | . 1 . . . 2 . 1 . 1 . . 1 . 2 3 Propulsion 16 | . . . . 1 1 . 3 . 2 . 1 . . 3 5 Utility 20 | . . . . . 3 2 2 . . . . 1 . 4 8 Weapon 9 | . . . . 2 2 . 1 . 2 . . . . . 2 Highest Loss Streak 8 | . 1 . . 2 5 1 3 . 5 . 1 1 . 2 8 To Critical Strikes . | . . . . . . . . . . . . . . . . Average Slot Usage (%) 92 | . 94 99 92 88 96 96 99 100 93 99 95 98 87 83 81 Engine 7 | . 13 14 11 11 2 9 8 9 8 7 7 6 6 4 4 Treads 23 | . 23 28 22 21 21 27 26 27 24 30 26 26 26 21 14 Device 11 | . 3 13 22 12 13 9 13 14 10 14 8 10 14 12 15 Storage 8 | . 14 14 11 11 11 9 9 9 9 7 7 6 6 6 6 Hackware 8 | . . . . . 8 7 8 9 9 7 24 17 8 5 23 Protection 10 | . . . . 8 11 15 13 12 16 15 3 15 10 15 2 Energy Cannon 7 | . . . . . 5 15 9 17 9 7 7 6 11 12 6 Ballistic Gun 6 | . 28 28 22 10 7 . . . . . . . . . . Ballistic Cannon 1 | . . . . . . 2 9 . 4 7 . 2 . . . Peak Build Rating 86 | 6 9 10 16 16 29 29 32 33 34 35 54 58 74 81 86 Average Rating 38 | 6 7 9 13 13 21 26 30 31 30 34 41 54 67 69 66 On Entrance 30 | 6 6 9 10 16 15 25 29 30 33 33 35 46 55 74 64 Naked Turns . | . . . . . . . . . . . . . . . . Heaviest Build 173 | 11 49 49 50 60 108 115 115 109 114 115 114 135 162 173 133 Greatest Support 150 | 20 40 40 40 40 40 60 63 60 60 80 112 112 112 126 150 Greatest Overweight (x) 4 | . 1 1 1 1 4 1 1 1 2 1 1 1 1 1 2 Average Overweight (x) . | . . 1 1 1 1 1 1 1 1 1 . 1 1 . . Largest Inventory Capacity 25 | 8 20 20 20 20 25 25 25 25 25 25 25 25 25 25 25 Average Capacity 23 | 8 15 20 20 20 21 25 25 25 25 25 25 25 25 25 25 Most Carried 25 | 6 20 20 20 20 25 25 25 25 25 23 25 25 25 25 25 Average Carried 21 | 6 13 19 19 19 21 24 24 24 22 22 24 24 24 23 21 Final Capacity 25 | 8 20 20 20 20 25 25 25 25 25 25 25 25 25 25 25 Final Carried 25 | 6 20 20 20 20 25 25 22 25 24 22 25 23 25 22 15 Class Distribution -------------------- 64% | Bothacker-Mutant 24% | Mutant 6% | Scavenger-Mutant 4% | Botlord-Mutant Dominant Class ---------------- Mutant | -10/Materials Mutant | -10/Mines Mutant | -9/Materials Mutant | -9/Storage Scavenger-Mutant | -9/Garrison Bothacker-Mutant | -8/Materials Bothacker-Mutant | -8/Garrison Bothacker-Mutant | -8/Materials Bothacker-Mutant | -8/Garrison Botlord-Mutant | -7/Factory Botlord-Mutant | -7/DSF Bothacker-Mutant | -6/Factory Bothacker-Mutant | -6/Waste Bothacker-Mutant | -6/Factory Bothacker-Mutant | -6/Garrison Resources | -11 -10 -10 -9 -9 -9 -8 -8 -8 -8 -7 -7 -6 -6 -6 -6 ----------- Run | Yrd Mat Min Mat Sto Gar Mat Gar Mat Gar Fac DSF Fac Was Fac Gar Matter Collected 5060 | 200 545 96 . 136 602 264 381 95 324 . 285 295 147 912 778 Remotely 10 | . . . . . . . . . . . 10 . . . . Salvage Created 9450 | . 514 180 . 386 725 979 766 320 455 . 148 539 1669 1664 1105 Parts 373 | . 27 11 . 16 37 52 33 16 33 . 7 22 13 66 40 Haulers Intercepted 6 | . 2 . . . . 1 . 1 . . . . . 2 . Recyclers Shooed 12 | . 4 . . 4 . . . 1 . . . . . 3 . Parts Field Recycled . | . . . . . . . . . . . . . . . . Retrieved Matter . | . . . . . . . . . . . . . . . . Parts Self-Destructed . | . . . . . . . . . . . . . . . . Prevented . | . . . . . . . . . . . . . . . . Kills | -11 -10 -10 -9 -9 -9 -8 -8 -8 -8 -7 -7 -6 -6 -6 -6 ------- Run | Yrd Mat Min Mat Sto Gar Mat Gar Mat Gar Fac DSF Fac Was Fac Gar Combat Hostiles Destroyed 170 | . 10 4 . 5 18 23 19 5 17 . 3 10 6 31 19 Melee 1 | . . . . . . . . . . . . 1 . . . Guns 33 | . 10 4 . 5 13 . . . . . . . . . 1 Cannons 99 | . . . . . 2 18 19 5 12 . 1 8 2 19 13 AOE 26 | . . . . . 2 4 . . 5 . 2 . . 8 5 Classes Destroyed 16 | . 5 . . 2 1 6 . . . . . . 1 . 1 Worker 4 | . . . . . . 1 . 1 . . . . . 2 . Builder 5 | . . . . . . 1 . . . . . . . 4 . Hauler 6 | . 2 . . . . 1 . 1 . . . . . 2 . Recycler 3 | . 1 . . 2 . . . . . . . . . . . Operator 3 | . 2 . . . . 1 . . . . . . . . . Watcher 1 | . . . . . . 1 . . . . . . . . . Swarmer 33 | . 6 . . . 4 2 . . 4 . . 2 . 7 8 Saboteur 1 | . . . . . . . . . . . . . . . 1 Grunt 76 | . 4 4 . 2 3 17 10 3 9 . 2 5 . 13 4 Brawler 8 | . . . . 1 2 . . 1 1 . . . . 1 2 Duelist 3 | . . . . . . 1 . . 1 . . 1 . . . Sentry 17 | . . . . 2 6 . 5 1 . . . . . 2 1 Specialist 8 | . . . . . . 2 . . . . 1 2 . . 3 Hunter 5 | . . . . . . 1 1 . . . . . . 3 . Programmer 14 | . . . . . 3 . 3 . 2 . . 1 . 5 . Compactor 6 | . . . . . . . . . . . . . 6 . . Best Kill Streak 10 | . 3 2 . 2 4 8 4 1 10 . 2 4 2 5 4 Combat Bots Only 10 | . 3 2 . 2 4 6 4 1 10 . 2 4 2 4 4 Max Kills in Single Turn 3 | . 1 1 . 1 2 3 1 1 2 . 2 1 1 3 1 Gunslinging . | . . . . . . . . . . . . . . . . Exploded 2 | . . . . . 1 2 . . 2 . 2 . . 2 1 Melee 1 | . . . . . . . . . . . . 1 . . . Uniques/NPCs Destroyed . | . . . . . . . . . . . . . . . . Combat | -11 -10 -10 -9 -9 -9 -8 -8 -8 -8 -7 -7 -6 -6 -6 -6 -------- Run | Yrd Mat Min Mat Sto Gar Mat Gar Mat Gar Fac DSF Fac Was Fac Gar Hostile Shots Fired 1246 | . 63 19 . 23 112 79 111 18 93 . 8 88 . 386 246 Missed 406 | . 19 5 . 6 25 28 43 9 26 . 3 27 . 141 74 Damage Taken 12791 | . 429 183 . 272 1089 821 962 139 994 . 195 934 . 3642 3131 Core 1361 | . 90 54 . 10 136 44 98 17 48 . . 218 . 225 421 Absorbed by Shields 307 | . . . . . 174 . 70 . 63 . . . . . . Reduced by Siege Mode 147 | . . . . . . . . . . . . . . . 147 Redirected to Shielding 214 | . . . . . . . . . . . . 12 . 72 130 Ignored by Resistances 131 | . . . . . . . . . . . . . . 131 . Regen/Repaired (Parts) 162 | . . . . . . 162 . . . . . . . . . Core Remaining (%) 73 | 100 . 42 . . 63 . . . 62 . 100 . . . . Volleys Fired 777 | . 68 13 1 31 58 57 87 18 65 . 12 50 54 121 142 Largest 2 | . 2 2 2 2 2 2 2 2 2 . 1 2 2 2 2 Hottest 200 | . 40 40 40 100 160 160 124 160 160 . 80 134 180 200 200 Shots Fired 1229 | . 136 26 2 61 91 104 138 37 95 . 12 79 98 202 148 Gun 361 | . 136 26 2 61 72 . . . . . . . . . 64 Cannon 801 | . . . . . 16 99 138 37 90 . 4 69 90 191 67 Launcher 28 | . . . . . 3 5 . . 5 . 1 . . 9 5 Special 39 | . . . . . . . . . . . 7 10 8 2 12 Kinetic 386 | . 136 26 2 32 54 26 55 . 26 . . 29 . . . Thermal 768 | . . . . 29 26 73 83 37 64 . 4 40 90 191 131 Explosive 28 | . . . . . 3 5 . . 5 . 1 . . 9 5 Electromagnetic 8 | . . . . . 8 . . . . . . . . . . Robot Hit Streak 20 | . 12 14 3 14 10 12 8 6 15 . 8 11 10 7 20 Robot Miss Streak 13 | . 5 2 . 2 4 6 4 3 3 . 3 3 4 13 8 Penetration Max 1 | . . . . . 1 . . . . . . . . . . Secondary Targets 6 | . 2 1 . . 3 . . . . . . . . . . Max Gunslinging Chain 1 | . 1 1 . . 1 . . . . . . . . . . Shots Hit Robots 758 | . 87 19 2 48 55 61 65 23 57 . 7 48 68 102 116 Core Hits 366 | . 30 10 1 14 31 46 29 9 29 . 4 16 12 73 62 Critical Kills 12 | . 1 . . 1 1 1 . . . . . 1 4 3 . Critical Parts Destroyed 4 | . 1 . . . 3 . . . . . . . . . . Critical Strikes 26 | . 2 . . 3 6 3 3 . . . . 1 4 3 1 Burn 5 | . . . . 2 2 . . . . . . . . . 1 Meltdown 10 | . . . . . 1 1 . . . . . 1 4 3 . Destroy 6 | . 2 . . 1 3 . . . . . . . . . . Blast 5 | . . . . . . 2 3 . . . . . . . . Melee Attacks 11 | . . . . . 9 . . . 2 . . . . . . Impact 9 | . . . . . 9 . . . . . . . . . . Slashing . | . . . . . . . . . . . . . . . . Piercing . | . . . . . . . . . . . . . . . . Sneak Attacks . | . . . . . . . . . . . . . . . . Combat Hostiles . | . . . . . . . . . . . . . . . . Follow-up Attacks . | . . . . . . . . . . . . . . . . Damage Inflicted 21608 | . 944 251 18 580 1621 2126 1747 681 1998 . 118 1225 2314 4733 3252 Guns 4003 | . 907 208 18 580 1124 . . . . . . . . . 1166 Cannons 14074 | . . . . . 152 1550 1744 663 1399 . 52 1214 2314 3481 1505 Explosions 3390 | . . . . . 345 572 . . 599 . 66 . . 1227 581 Melee . | . . . . . . . . . . . . . . . . Ramming 141 | . 37 43 . . . 4 3 18 . . . 11 . 25 . Kinetic 4619 | . 907 208 18 260 976 415 902 . 529 . . 404 . . . Thermal 13546 | . . . . 320 300 1184 842 663 870 . 52 810 2314 3520 2671 Explosive 3172 | . . . . . 345 523 . . 599 . 66 . . 1058 581 Electromagnetic 130 | . . . . . . . . . . . . . . 130 . Impact . | . . . . . . . . . . . . . . . . Slashing . | . . . . . . . . . . . . . . . . Piercing . | . . . . . . . . . . . . . . . . Highest Corruption 34 | . 2 2 . 1 6 2 5 5 8 . . 3 24 34 34 Average Corruption 12 | . 2 2 . 1 2 2 2 5 7 . . 2 20 26 34 Corruption Purged . | . . . . . . . . . . . . . . . . Corruption Blocked . | . . . . . . . . . . . . . . . . Effects 424 | . 18 18 . 3 24 1 26 14 27 . . 2 36 179 76 Message Errors 102 | . 5 6 . . 5 . 7 2 8 . . . 8 42 19 Matter Fused 96 | . 1 6 . 2 5 1 6 4 8 . . . 8 39 16 Heat Flow Errors 54 | . 4 1 . . 3 . 4 4 1 . . . 6 22 9 Energy Discharges 38 | . 2 2 . . 3 . 3 2 4 . . 1 1 15 5 Parts Rejected 9 | . 1 . . . . . 2 . . . . . . 5 1 Parts Fused 3 | . . 1 . . . . . . . . . . 1 1 . Data Loss (minor) 38 | . 1 2 . . 4 . 2 . 3 . . 1 5 14 6 Data Loss (major) 21 | . 1 . . . 2 . 1 1 . . . . 1 13 2 Misfires 11 | . 1 . . . . . 1 1 . . . . 1 6 1 Alerts 11 | . 1 . . . . . . . 2 . . . 1 4 3 Misdirections 4 | . . . . . . . . . . . . . 1 2 1 Weapon Failures 37 | . 1 . . 1 2 . . . 1 . . . 3 16 13 Overload Shots . | . . . . . . . . . . . . . . . . Overflow Damage 259 | . . . . . . . 20 . 24 . . 4 . 205 6 Projectiles 179 | . . . . . . . 20 . 24 . . 4 . 131 . Explosions 80 | . . . . . . . . . . . . . . 74 6 Melee . | . . . . . . . . . . . . . . . . Knockbacks 23 | . 1 2 . . . 4 5 . 3 . . 8 . . . Impact 3 | . 1 2 . . . . . . . . . . . . . Kinetic 20 | . . . . . . 4 5 . 3 . . 8 . . . Secondary . | . . . . . . . . . . . . . . . . Self-Inflicted Damage 379 | . . . . . . 42 . . 45 . . . . 168 124 Shots 8 | . . . . . . 1 . . 1 . . . . 3 3 Rammed 21 | . 5 5 . . 1 2 1 1 . . . 2 . 4 . Targets Rammed 23 | . 5 5 . . 1 2 1 2 . . . 3 . 4 . Kicked . | . . . . . . . . . . . . . . . . Crushed 2 | . . . . . . . . 1 . . . 1 . . . Highest Temperature 453 | . 271 131 . 3 257 343 217 250 62 . . 117 453 310 370 Average Temperature 79 | . 71 31 . 3 89 100 64 45 16 . . 28 159 90 84 Received Heat Transfer 3473 | . 96 105 . 69 239 414 378 45 417 . 9 207 . 939 555 Effects 1 | . . . . . . . . . . . . . . . 1 Shutdowns 1 | . . . . . . . . . . . . . . . 1 Siege Activations 2 | . . . . . . . . . . . . . . . 2 Total Turns 64 | . . . . . . . . . . . . . . . 64 Longest Duration 37 | . . . . . . . . . . . . . . . 37 Robots Corrupted . | . . . . . . . . . . . . . . . . Combat Hostiles . | . . . . . . . . . . . . . . . . Parts Fried . | . . . . . . . . . . . . . . . . Impact Corruptions . | . . . . . . . . . . . . . . . . Robots Melted 11 | . . . . . 1 1 . . . . . 1 4 4 . Combat Hostiles 11 | . . . . . 1 1 . . . . . 1 4 4 . Parts Melted 47 | . . . . 3 5 3 1 3 4 . . . 4 18 6 Heat Transferred 22608 | . . . . 1110 867 2250 1600 1300 1625 . 100 1250 3600 4775 4131 Parts Sabotaged 5 | . . . . . . . . . . . . . . . 5 Parts Stolen . | . . . . . . . . . . . . . . . . Parts Stripped . | . . . . . . . . . . . . . . . . Power Chain Reactions . | . . . . . . . . . . . . . . . . Alert | -11 -10 -10 -9 -9 -9 -8 -8 -8 -8 -7 -7 -6 -6 -6 -6 ------- Run | Yrd Mat Min Mat Sto Gar Mat Gar Mat Gar Fac DSF Fac Was Fac Gar Peak Influence 1173 | . 160 65 49 163 1173 809 1083 580 539 293 262 198 26 488 566 Initial 571 | . . 36 19 20 105 571 525 527 214 282 205 137 . 1 323 Average 307 | . 67 26 33 97 631 620 801 446 392 289 204 88 9 115 404 Maximum Alert Level 4 | . . . . . 4 3 3 2 2 1 1 . . 2 2 Low Security (%) 50 | 100 100 100 100 100 5 . . . . . 46 100 100 80 . Level 1 13 | . . . . . 13 2 . 22 39 100 53 . . 17 40 Level 2 25 | . . . . . 46 86 36 77 60 . . . . 2 59 Level 3 10 | . . . . . 32 11 63 . . . . . . . . Level 4 . | . . . . . 1 . . . . . . . . . . Level 5 . | . . . . . . . . . . . . . . . . High Security . | . . . . . . . . . . . . . . . . Max Security . | . . . . . . . . . . . . . . . . Squads Dispatched 26 | . 2 . . . . 7 . 1 . . 1 4 . 11 . Investigation 3 | . 1 . . . . 1 . . . . . . . 1 . Extermination 6 | . . . . . . . . . . . . 1 . 5 . Reinforcement 13 | . 1 . . . . 4 . . . . 1 3 . 4 . Assault 1 | . . . . . . . . . . . . . . 1 . Garrison 3 | . . . . . . 2 . 1 . . . . . . . Intercept . | . . . . . . . . . . . . . . . . Searches Triggered . | . . . . . . . . . . . . . . . . Construction Impeded 4 | . . . . . . 1 . . . . . 1 . 2 . Haulers Reinforced 2 | . . . . . . . . . . . . . . 2 . Active Scanning Responses . | . . . . . . . . . . . . . . . . Cargo Convoy Interrupts . | . . . . . . . . . . . . . . . . Alert ID Control Effect 5 | . . . . . . . . . . . 2 1 . . 2 Stealth | -11 -10 -10 -9 -9 -9 -8 -8 -8 -8 -7 -7 -6 -6 -6 -6 --------- Run | Yrd Mat Min Mat Sto Gar Mat Gar Mat Gar Fac DSF Fac Was Fac Gar Distress Signals 8 | . 2 . . . . 2 . 1 . . . 2 . 1 . Communications Jammed . | . . . . . . . . . . . . . . . . Distress Signals . | . . . . . . . . . . . . . . . . Times Spotted 266 | . 28 4 2 5 28 31 22 8 21 . 9 14 5 47 42 Peak Tracking Total 12 | . 4 2 1 2 4 4 3 5 6 . 4 3 2 5 12 Tactical Retreats 19 | . 2 . . . . 1 1 . 1 . . 1 . 8 5 Traps | -11 -10 -10 -9 -9 -9 -8 -8 -8 -8 -7 -7 -6 -6 -6 -6 ------- Run | Yrd Mat Min Mat Sto Gar Mat Gar Mat Gar Fac DSF Fac Was Fac Gar Traps Triggered 18 | . 2 . . . 5 1 3 . 1 . 2 1 . 1 2 Indirectly . | . . . . . . . . . . . . . . . . Trap Hack Attempts 19 | . . . . . 19 . . . . . . . . . . Triggered . | . . . . . . . . . . . . . . . . Disarmed 1 | . . . . . 1 . . . . . . . . . . Reprogrammed . | . . . . . . . . . . . . . . . . Reused . | . . . . . . . . . . . . . . . . Traps Extracted . | . . . . . . . . . . . . . . . . Installed . | . . . . . . . . . . . . . . . . Triggered . | . . . . . . . . . . . . . . . . Machines | -11 -10 -10 -9 -9 -9 -8 -8 -8 -8 -7 -7 -6 -6 -6 -6 ---------- Run | Yrd Mat Min Mat Sto Gar Mat Gar Mat Gar Fac DSF Fac Was Fac Gar Machines Disabled 30 | . . 1 . . 2 3 3 1 1 . 1 3 . 13 2 Max in Single Turn 3 | . . 1 . . 1 2 1 1 1 . 1 1 . 3 1 Garrison Relay 7 | . . . . . 2 . 3 . 1 . . . . . 1 Machines Repaired . | . . . . . . . . . . . . . . . . Machines Dismantled . | . . . . . . . . . . . . . . . . Machines Sabotaged . | . . . . . . . . . . . . . . . . Overloaded Fab Kills . | . . . . . . . . . . . . . . . . Hacking | -11 -10 -10 -9 -9 -9 -8 -8 -8 -8 -7 -7 -6 -6 -6 -6 --------- Run | Yrd Mat Min Mat Sto Gar Mat Gar Mat Gar Fac DSF Fac Was Fac Gar Machines Accessed 45 | . 6 . 1 4 4 7 2 4 2 3 . . . 11 1 Terminals 37 | . 6 . 1 3 4 5 2 3 2 3 . . . 7 1 Fabricators 2 | . . . . . . . . . . . . . . 2 . Repair Stations 1 | . . . . . . 1 . . . . . . . . . Recycling Units . | . . . . . . . . . . . . . . . . Scanalyzers 1 | . . . . . . . . . . . . . . 1 . Garrison Access 4 | . . . . 1 . 1 . 1 . . . . . 1 . Total Hacks 118 | . 18 . 3 10 9 21 3 12 4 6 . . . 30 2 Successful 56 | . 11 . 1 6 4 12 2 5 1 2 . . . 11 1 Failed 62 | . 7 . 2 4 5 9 1 7 3 4 . . . 19 1 Catastrophic 12 | . 1 . . . 1 2 1 2 . 1 . . . 4 . Database Lockouts . | . . . . . . . . . . . . . . . . Manual 38 | . 5 . . 2 5 7 1 7 . 1 . . . 10 . Terminals 96 | . 18 . 3 8 9 13 3 10 4 6 . . . 20 2 Fabricators 6 | . . . . . . . . . . . . . . 6 . Repair Stations 6 | . . . . . . 6 . . . . . . . . . Recycling Units . | . . . . . . . . . . . . . . . . Scanalyzers 3 | . . . . . . . . . . . . . . 3 . Garrison Access 7 | . . . . 2 . 2 . 2 . . . . . 1 . Terminal Hacks 35 | . 10 . 1 3 4 5 2 2 1 2 . . . 4 1 Robot Analysis 2 | . 2 . . . . . . . . . . . . . . Prototype ID Bank 3 | . 1 . . 1 . 1 . . . . . . . . . Open Door 2 | . . . . . 1 . 1 . . . . . . . . Open DSF 1 | . . . . . . . . . . 1 . . . . . Branch Access Points 3 | . 1 . . 1 . . . . . . . . . 1 . Emergency Access Points 5 | . 1 . . . 1 . 1 . . . . . . 1 1 Terminal Index 2 | . . . . . . . . . . 1 . . . 1 . Unreport Threat 2 | . . . . . . 1 . 1 . . . . . . . Transport Status 1 | . 1 . . . . . . . . . . . . . . Hauler Manifests 5 | . 2 . 1 . . 1 . 1 . . . . . . . Registered Prototypes 1 | . 1 . . . . . . . . . . . . . . Zone Layout 5 | . 1 . . 1 . 2 . . . . . . . 1 . Garrison Registry 2 | . . . . . 1 . . . 1 . . . . . . Security Stations 1 | . . . . . 1 . . . . . . . . . . Fabricator Hacks 3 | . . . . . . . . . . . . . . 3 . Network Status 1 | . . . . . . . . . . . . . . 1 . Load Schematic 1 | . . . . . . . . . . . . . . 1 . Build 1 | . . . . . . . . . . . . . . 1 . Repair Station Hacks 4 | . . . . . . 4 . . . . . . . . . Scan Component 2 | . . . . . . 2 . . . . . . . . . Repair 2 | . . . . . . 2 . . . . . . . . . Recycling Unit Hacks . | . . . . . . . . . . . . . . . . Scanalyzer 2 | . . . . . . . . . . . . . . 2 . Insert Component 1 | . . . . . . . . . . . . . . 1 . Analyze 1 | . . . . . . . . . . . . . . 1 . Garrison Access Hacks 6 | . . . . 1 . 2 . 2 . . . . . 1 . Unlock Access 4 | . . . . 1 . 1 . 1 . . . . . 1 . Coupler Status 2 | . . . . . . 1 . 1 . . . . . . . Unauthorized Hacks 6 | . 1 . . 2 . 1 . 1 . . . . . 1 . Terminals 6 | . 1 . . 2 . 1 . 1 . . . . . 1 . Botnet 6 | . 1 . . 2 . 1 . 1 . . . . . 1 . Fabricators . | . . . . . . . . . . . . . . . . Repair Stations . | . . . . . . . . . . . . . . . . Recycling Units . | . . . . . . . . . . . . . . . . Scanalyzers . | . . . . . . . . . . . . . . . . Garrison Access . | . . . . . . . . . . . . . . . . Data Cores Recovered 1 | . 1 . . . . . . . . . . . . . . Used . | . . . . . . . . . . . . . . . . Hacking Detections 39 | . 6 . 1 3 4 6 2 3 2 2 . . . 9 1 Full Trace Events 1 | . . . . . . . . . . . . . . 1 . Feedback Events . | . . . . . . . . . . . . . . . . Feedback Blocked . | . . . . . . . . . . . . . . . . Robot Schematics Acquired . | . . . . . . . . . . . . . . . . Robots Built . | . . . . . . . . . . . . . . . . Authchips . | . . . . . . . . . . . . . . . . Time . | . . . . . . . . . . . . . . . . Total Robot Build Rating . | . . . . . . . . . . . . . . . . Part Schematics Acquired 1 | . . . . . . . . . . . . . . 1 . Parts Built . | . . . . . . . . . . . . . . . . Authchips . | . . . . . . . . . . . . . . . . Time 106 | . . . . . . . . . . . . . . 106 . Total Part Build Rating . | . . . . . . . . . . . . . . . . Parts Repaired 2 | . . . . . . 2 . . . . . . . . . Time 58 | . . . . . . 58 . . . . . . . . . Parts Recycled . | . . . . . . . . . . . . . . . . Recycled Matter . | . . . . . . . . . . . . . . . . Retrieved Matter . | . . . . . . . . . . . . . . . . Retrieved Components . | . . . . . . . . . . . . . . . . Parts Scanalyzed 1 | . . . . . . . . . . . . . . 1 . Part Schematics Acquired 1 | . . . . . . . . . . . . . . 1 . Parts Damaged . | . . . . . . . . . . . . . . . . Bothacking | -11 -10 -10 -9 -9 -9 -8 -8 -8 -8 -7 -7 -6 -6 -6 -6 ------------ Run | Yrd Mat Min Mat Sto Gar Mat Gar Mat Gar Fac DSF Fac Was Fac Gar Used RIF Installer 5 | . . . . . 1 . 1 . 2 . . . . . 1 Hotswap 1 | . . . . . . . . . 1 . . . . . . Threat Obfuscator 2 | . . . . . . . 1 . . . . . . . 1 Alert ID Control 1 | . . . . . . . . . 1 . . . . . . Robots Hacked 26 | . . . . . . . . . 1 . 3 6 6 2 8 Non-combat 6 | . . . . . . . . . 1 . . 3 . 2 . Combat 20 | . . . . . . . . . . . 3 3 6 . 8 Robot Hacks Applied 28 | . . . . . . . . . 1 . 3 8 6 2 8 drop_inventory 2 | . . . . . . . . . . . . 1 . 1 . map_route 1 | . . . . . . . . . . . . 1 . . . relay_feed 1 | . . . . . . . . . . . . 1 . . . ignore_targets 6 | . . . . . . . . . . . . . 6 . . find_garrison 1 | . . . . . . . . . . . . 1 . . . amplify_resonance 3 | . . . . . . . . . . . . . . . 3 overwrite_iff 2 | . . . . . . . . . . . . 2 . . . streamctrl_low 1 | . . . . . . . . . . . . . . 1 . streamctrl_high 1 | . . . . . . . . . . . . . . . 1 formatsys_low 1 | . . . . . . . . . . . . 1 . . . formatsys_high 9 | . . . . . . . . . 1 . 3 1 . . 4 Relay Couplers Released 28 | . . . . . 7 . 11 . 3 . . . . 4 3 Machine Destruction 24 | . . . . . 7 . 11 . 3 . . . . . 3 Programmers 4 | . . . . . . . . . . . . . . 4 . Attached 11 | . . . . . . . . . 1 . 4 2 . . 4 Fabnet Peak Effective % . | . . . . . . . . . . . . . . . . Robots Rewired 6 | . . . . . 6 . . . . . . . . . . Allies Hacked . | . . . . . . . . . . . . . . . . Hacks Repelled . | . . . . . . . . . . . . . . . . Allies | -11 -10 -10 -9 -9 -9 -8 -8 -8 -8 -7 -7 -6 -6 -6 -6 -------- Run | Yrd Mat Min Mat Sto Gar Mat Gar Mat Gar Fac DSF Fac Was Fac Gar Total Allies 24 | . . . . . 8 . 2 . 1 . 3 4 . 1 5 Largest Group 6 | . . . . . 6 . 2 . 1 . 2 2 . 1 1 Highest-Rated Group 90 | . . . . . 90 . 51 . 27 . 90 46 . 23 90 Highest-Rated Ally 90 | . . . . . 39 . 31 . 27 . 90 37 . 23 90 Total Orders . | . . . . . . . . . . . . . . . . Ally Attacks 122 | . . . . . 67 . 15 . . . 15 13 . . 12 Total Damage 2357 | . . . . . 1057 . 360 . . . 448 162 . . 330 Kills 25 | . . . . . 17 . 1 . . . 4 1 . . 2 Allies Corrupted 1 | . . . . . 1 . . . . . . . . . . Allies Melted . | . . . . . . . . . . . . . . . . Intel | -11 -10 -10 -9 -9 -9 -8 -8 -8 -8 -7 -7 -6 -6 -6 -6 ------- Run | Yrd Mat Min Mat Sto Gar Mat Gar Mat Gar Fac DSF Fac Was Fac Gar Robot Analysis Total 2 | . 2 . . . . . . . . . . . . . . Derelict Logs Recovered 1 | . . 1 . . . . . . . . . . . . . Drone Launches . | . . . . . . . . . . . . . . . . Drone Recoveries . | . . . . . . . . . . . . . . . . Exploration | -11 -10 -10 -9 -9 -9 -8 -8 -8 -8 -7 -7 -6 -6 -6 -6 ------------- Run | Yrd Mat Min Mat Sto Gar Mat Gar Mat Gar Fac DSF Fac Was Fac Gar Turns Passed 15746 | 6 1440 1438 180 306 1827 1139 1493 518 803 101 437 892 731 3203 1232 Spaces Moved 5555 | 6 633 576 73 75 580 368 510 179 232 42 164 303 237 1152 425 Core . | . . . . . . . . . . . . . . . . Treads 5405 | . 489 576 73 75 580 368 510 179 232 42 164 303 237 1152 425 Legs 150 | 6 144 . . . . . . . . . . . . . . Wheels . | . . . . . . . . . . . . . . . . Hover . | . . . . . . . . . . . . . . . . Flight . | . . . . . . . . . . . . . . . . Fastest Speed 120 | 120 120 240 240 240 240 240 240 240 240 240 160 240 240 160 160 Average Speed 231 | 120 188 240 240 240 256 240 240 240 263 240 227 240 240 237 188 Slowest Speed 480 | 120 240 240 240 240 480 240 240 240 320 240 240 240 240 240 320 Overloaded Moves . | . . . . . . . . . . . . . . . . Propulsion Burnouts . | . . . . . . . . . . . . . . . . Robots Hopped . | . . . . . . . . . . . . . . . . Cave-ins Triggered . | . . . . . . . . . . . . . . . . Exploration Rate (%) 51 | 2 97 99 7 22 79 52 84 24 41 2 97 11 97 42 61 Regions Visited 15 Branch Regions 2 Pre-discovered Areas 1 | . . 1 . . . . . . . . . . . . . Known Exits Taken 7 | . 1 . 1 1 . 1 . 1 . 1 . . . 1 . Unknown Exits Taken 2 | 1 . 1 . . . . . . . . . . . . . Scrap Searched 2 | . . 2 . . . . . . . . . . . . . Spaces Dug 34 | . . . . . 1 2 . . . . 5 3 . 23 . Terrain Destroyed 341 | . . . . . 7 48 . 8 31 . 5 14 17 161 50 Melee 1 | . . . . . 1 . . . . . . . . . . Projectile 106 | . . . . . . 22 . 8 3 . . 14 17 39 3 AOE 234 | . . . . . 6 26 . . 28 . 5 . . 122 47 Terrain Rammed . | . . . . . . . . . . . . . . . . Walls Destroyed . | . . . . . . . . . . . . . . . . Machines Disabled . | . . . . . . . . . . . . . . . . Actions | -11 -10 -10 -9 -9 -9 -8 -8 -8 -8 -7 -7 -6 -6 -6 -6 --------- Run | Yrd Mat Min Mat Sto Gar Mat Gar Mat Gar Fac DSF Fac Was Fac Gar Total 7093 | 5 752 604 76 141 811 516 644 229 325 43 227 389 307 1361 663 Wait 238 | . 15 1 . 23 22 70 14 16 5 . 3 14 . 26 29 Move 5545 | 5 632 575 72 75 579 368 509 179 231 41 163 303 236 1152 425 Hop . | . . . . . . . . . . . . . . . . Pick Up 113 | . 18 4 1 3 22 6 7 4 5 . 11 4 3 15 10 Fast Attach 40 | . 4 1 1 2 4 4 3 1 . . 5 1 1 7 6 Attach 70 | . 3 . 1 3 5 3 7 . 6 2 3 4 . 13 20 Detach 11 | . 1 . . . . . . 1 1 . . . 3 1 4 Swap 99 | . 2 . . 1 23 2 3 4 7 . 10 8 3 16 20 Drop 81 | . 4 5 . 3 18 4 7 4 . . 16 2 7 6 5 Fire 777 | . 68 13 1 31 58 57 87 18 65 . 12 50 54 121 142 Melee 11 | . . . . . 9 . . . 2 . . . . . . Ram . | . . . . . . . . . . . . . . . . Kick . | . . . . . . . . . . . . . . . . Crush 23 | . 5 5 . . 1 2 1 2 . . . 3 . 4 . Escape Stasis 24 | . . . . . 10 . 6 . 2 . 4 . . . 2 Rewire 42 | . . . . . 41 . . . 1 . . . . . . Trap 19 | . . . . . 19 . . . . . . . . . . Miscellaneous . | . . . . . . . . . . . . . . . . Route ------- -11/Scrapyard -10/Materials (discovered 4 exits: *Mat x3 / *Min) -10/Mines (discovered 3 exits: *Mat x2 / [*Sub]) -9/Materials -9/Storage (discovered 2 exits: Rec / Gar) -9/Garrison (discovered 3 exits: *Mat x3) -8/Materials (discovered 2 exits: *Fac / Gar) -8/Garrison (discovered 2 exits: *Mat x2) -8/Materials -8/Garrison (discovered 3 exits: *Fac x3) -7/Factory -7/DSF -6/Factory -6/Waste -6/Factory (discovered 3 exits: Low x2 / Gar) -6/Garrison (discovered 1 exit: [*Fac]) History --------- Turn | Location | Event 1 | -11/Scrapyard | Discovered new exit (range 3) 7 | -11/Scrapyard | Entered Materials 46 | -10/Materials | Identified exit to Mines 175 | -10/Materials | Discovered new exit (range 3) 306 | -10/Materials | Build established: Mutant 618 | -10/Materials | Discovered new exit (range 14) 1027 | -10/Materials | Discovered new exit (range 16) 1447 | -10/Materials | Entered Mines 1454 | -10/Mines | Received a Rocket Launcher from a helpful Derelict 1612 | -10/Mines | Discovered new exit (range 9) 1991 | -10/Mines | Discovered new exit (range 5) 1994 | -10/Mines | Learned location of Recycling (-9) 2191 | -10/Mines | A weapon hastily lodged in a ceiling crevice suddenly fell to the ground 2520 | -10/Mines | Discovered new exit (range 10) 2745 | -10/Mines | Core integrity fell below 50% 2885 | -10/Mines | Entered Materials 2885 | -9/Materials | Evolved 2 slots: Utility x2 2886 | -9/Materials | Discovered new exit (range 7) 3057 | -9/Materials | Identified exit to Storage 3065 | -9/Materials | Entered Storage 3221 | -9/Storage | Identified exit to Recycling 3371 | -9/Storage | Identified exit to Garrison 3371 | -9/Storage | Entered Garrison 3418 | -9/Garrison | Rescued a captive Derelict 3428 | -9/Garrison | Rescued a captive Derelict 3601 | -9/Garrison | Triggered checkpoint 3679 | -9/Garrison | Triggered checkpoint 3707 | -9/Garrison | Triggered checkpoint 3708 | -9/Garrison | Triggered checkpoint 3853 | -9/Garrison | Discovered new exit (range 13) 3871 | -9/Garrison | Learned Materials security intel 3933 | -9/Garrison | Discovered new exit (range 61) 3933 | -9/Garrison | Discovered new exit (range 13) 3933 | -9/Garrison | Discovered new exit (range 88) 4067 | -9/Garrison | Garrison Relay disabled 4160 | -9/Garrison | Build established: Scavenger-Mutant 4199 | -9/Garrison | Triggered checkpoint 4337 | -9/Garrison | Installed Relay Interface Framework 4449 | -9/Garrison | Garrison Relay disabled 4569 | -9/Garrison | Triggered checkpoint 4605 | -9/Garrison | Triggered checkpoint 4729 | -9/Garrison | P-60 Hacker assimilated allied Defender 2a 5122 | -9/Garrison | Lost 5 allies 5147 | -9/Garrison | Build established: Bothacker-Mutant 5152 | -9/Garrison | Lost 5 parts (1p1n1u2w) 5198 | -9/Garrison | Entered Materials 5198 | -8/Materials | Evolved 2 slots: Propulsion x1, Utility x1 5801 | -8/Materials | Repaired Lgt. Armor Plating 5834 | -8/Materials | Repaired Med. Armor Plating 6043 | -8/Materials | Discovered new exit (range 16) 6143 | -8/Materials | Garrison activated, responded to threat 6337 | -8/Materials | Identified exit to Garrison 6337 | -8/Materials | Entered Garrison 6373 | -8/Garrison | Expanded RIF knowledge: Threat Obfuscation 6413 | -8/Garrison | Triggered checkpoint 6457 | -8/Garrison | Garrison Relay disabled 6603 | -8/Garrison | Triggered checkpoint 6731 | -8/Garrison | Triggered checkpoint 6771 | -8/Garrison | Garrison Relay disabled 6867 | -8/Garrison | Triggered checkpoint 6976 | -8/Garrison | Discovered new exit (range 14) 7113 | -8/Garrison | Rescued a captive Derelict 7117 | -8/Garrison | Rescued a captive Derelict 7504 | -8/Garrison | Garrison Relay disabled 7606 | -8/Garrison | Triggered checkpoint 7656 | -8/Garrison | Lost 3 parts (1p1n1u) 7722 | -8/Garrison | Discovered new exit (range 10) 7795 | -8/Garrison | Triggered checkpoint 7830 | -8/Garrison | Entered Materials 8250 | -8/Materials | Garrison activated, responded to threat 8348 | -8/Materials | Identified exit to Garrison 8348 | -8/Materials | Entered Garrison 8438 | -8/Garrison | Discovered new exit (range 26) 8438 | -8/Garrison | Discovered new exit (range 63) 8438 | -8/Garrison | Discovered new exit (range 58) 8532 | -8/Garrison | Expanded RIF knowledge: Alert ID Control 8576 | -8/Garrison | Triggered checkpoint 8678 | -8/Garrison | Triggered checkpoint 8712 | -8/Garrison | Destroyed 10 combat bots 8783 | -8/Garrison | Lost 5 parts (1p2n2w) 8940 | -8/Garrison | Triggered checkpoint 8950 | -8/Garrison | Expanded RIF knowledge: Hotswap 9064 | -8/Garrison | Garrison Relay disabled 9151 | -8/Garrison | Entered Factory 9151 | -7/Factory | Evolved 2 slots: Propulsion x1, Utility x1 9249 | -7/Factory | Identified exit to DSF 9252 | -7/Factory | Entered DSF 9286 | -7/DSF | Additional patrols routed to DSF 9374 | -7/DSF | Build established: Botlord-Mutant 9453 | -7/DSF | Discovered new exit (range 14) 9689 | -7/DSF | Entered Factory 9689 | -6/Factory | Accompanied by 1 ally 9689 | -6/Factory | Evolved 2 slots: Utility x2 9824 | -6/Factory | Build established: Bothacker-Mutant 10098 | -6/Factory | Discovered new exit (range 152) 10581 | -6/Factory | Sucked down chute 10581 | -6/Factory | Entered Waste 10596 | -6/Waste | EMP discharged 10596 | -6/Waste | System corruption reached 10% 10612 | -6/Waste | Spotted C-40 Crusher 10619 | -6/Waste | Spotted C-40 Crusher 10656 | -6/Waste | Spotted C-40 Crusher 10665 | -6/Waste | Spotted C-40 Crusher 10688 | -6/Waste | Spotted C-40 Crusher 10696 | -6/Waste | EMP discharged 10702 | -6/Waste | Spotted C-40 Crusher 10791 | -6/Waste | Destroyed C-40 Crusher 10796 | -6/Waste | EMP discharged 10825 | -6/Waste | Destroyed C-40 Crusher 10844 | -6/Waste | Destroyed C-40 Crusher 10867 | -6/Waste | Found Damper Plating 10892 | -6/Waste | Destroyed C-40 Crusher 10896 | -6/Waste | EMP discharged 10931 | -6/Waste | Destroyed C-40 Crusher 10943 | -6/Waste | Discovered new exit (range 10) 10996 | -6/Waste | EMP discharged 11062 | -6/Waste | Destroyed C-40 Crusher 11096 | -6/Waste | EMP discharged 11196 | -6/Waste | EMP discharged 11296 | -6/Waste | EMP discharged 11312 | -6/Waste | Entered Factory 12524 | -6/Factory | Spotted B-75 Beast 12819 | -6/Factory | Identified exit to Lower Caves 13996 | -6/Factory | System corruption reached 30% 14462 | -6/Factory | First assault squad dispatched 14509 | -6/Factory | Core integrity fell below 50% 14515 | -6/Factory | Identified exit to Garrison 14515 | -6/Factory | Entered Garrison 14554 | -6/Garrison | Expanded RIF knowledge: Threat Obfuscation 14653 | -6/Garrison | Triggered checkpoint 14766 | -6/Garrison | Heavy support dispatched to Factory 14853 | -6/Garrison | Triggered checkpoint 14897 | -6/Garrison | Lost 3 parts (1p1n1u) 14991 | -6/Garrison | Triggered checkpoint 15012 | -6/Garrison | Triggered checkpoint 15048 | -6/Garrison | Heavy support dispatched to Factory 15069 | -6/Garrison | Lost 4 parts (1p2n1u) 15355 | -6/Garrison | Garrison Relay disabled 15444 | -6/Garrison | Heavy support dispatched to Factory 15465 | -6/Garrison | Discovered new exit (range 10) 15667 | -6/Garrison | Heavy support dispatched to Factory 15678 | -6/Garrison | Core integrity fell below 20% 15747 | -6/Garrison | Destroyed by X-62 Marksman with Gauss Rifle Last Messages --------------- 15721_ Identified Power Amplifier. 15723_ Slug penetrates Wall. 15725_ B-48 Gladiator destroyed. 15727_ System corrupted: Rocket Launcher failed to launch. 15728_ System corrupted: Component data lost. 15729_ Penetrated by Slug. 15729_ B-48 Gladiator destroyed. 15730_ The unstable cave ceiling collapses. 15730_ Rocket Launcher destroyed. 15730_ Imp. Heavy Treads destroyed. 15731_ Penetrated by Slug. 15734_ Lgt. Angular Momentum Engine destroyed. 15735_ Penetrated by Slug. 15737_ Ion Burst Cannon destroyed. 15737_ X-62 Marksman destroyed. 15738_ Penetrated by Slug. 15740_ The unstable cave ceiling collapses. 15741_ Penetrated by Slug. 15742_ Slug penetrates Wall. 15744_ Slug penetrates Earth. Map ----- +----------------------------------------------------+ | ?????#" "????# ## #######+##????????????????????? | | ?????#" "????# ## #?????????????????????????????? | | ?????+ +???# ## #?????????????????????????????? | | ??????# #????# ## #?????????????????????????????? | | ??????#"###### ## #???????#?????????????????????? | | ??????# + #?????? #?????????????????????? | | ??????# ######### #?##### #####?????????????????? | | #####?# ##??????# #?# #?????????????????? | | ### ###????# #?# #?????????????????? | | ## # ##???# #?# #?????????????????? | | % = # ##### ### " #?????????????????? | | =% %== + """ ""??????????????????? | | [% ### " "#?????????????????? | | ##* # ########?# "#?????????????????? | | % ## ####????????# " "#?????????????????? | | #?????????# """""#?????????????????? | | #?????????###########?????????????????? | | #?????????????????????????????????????? | | #?????????????????????????????????????? | | ## ###????????##???????????????????????????? | | ## #??????????# ###??##????????????????????? | | #??????????# # ## ###??????????????????? | | +???????????# # #??????????????????? | | #????????????# / ##???????? #????? | | ## #???????#####;# %% ###==* #????? | | ## #?# % @x *%!/%/! #????? | | +##### #???????####### % ###==! #????? | | ?????# #????????????# #??????? #????? | | ?????# #???#????????# H #????????????????? | | ?????# #?? #?####?#### # ## ###????????????????? | | ?????# ###+###""###!####;########??????????????? | | ?????# % =[ !%=% ???????? | | ???### %[ *%= ![% ???????? | | ???# " ! ???????? | | ???#########"+############ ###+######## ????????? | | ???????????# #??????????#^ #????????????????????? | | ???????????# #??????????# #????????????????????? | | ???????????#""########???# #????????????????????? | | ???????????# #????????????????????? | | ???????????# #????????????????????? | | ???????????## #####"""#####????????????????????? | | ????????????"""""#???????????????????????????????? | | ????????????######???????????????????????????????? | | ?????????????????????????????????????????????????? | | ?????????????????????????????????????????????????? | | ?????????????????????????????????????????????????? | | ?????????????????????????????????????????????????? | | ?????????????????????????????????????????????????? | | ?????????????????????????????????????????????????? | | ?????????????????????????????????????????????????? | +----------------------------------------------------+ Best States ------------- Heat Dissipation 91 Coolant Potential 65 Energy Generation 25 Energy Capacity 325 Matter Stores 300 Matter Capacity 300 Sight Range 16 Robot Scan Range 16 Terrain Scan Density 10 Jamming Range 12 Power Amplification 20 Armor Coverage 1825 Resistance: KI 20 Resistance: EM 90 Propulsion Shielding 66 Utility Shielding 66 Evasion (%) 55 Recoil Reduction 4 Offensive Hacking 22 Relay Coupler Types 4 Relay Coupler Value 112 Item Schematics ----------------- Hvy. Treads | -6/Factory | Scanalyzed Robot Schematics ------------------ None Fabricated ------------ Nothing Alien Tech Used ----------------- None Achievements -------------- None Challenges ------------ None Game ------ Seed RiotFlyingAutogun Manual? 0 Play Time 01:56:41 Cumulative 307.2 hours Start 2025.03.29 @ 15:06:57 End 2025.03.29 @ 17:03:12 Sessions 1 Manual Loads 0 Difficulty Rogue Special Mode None Game No. 170 Rogue 170 Adventurer 0 Explorer 0 Win Type - Total 15 Types 3/2/6/2/1/0/1/0/0 Lore% 81 Gallery% 83 Achievement% 73 Wizard Run 0 Options --------- Layout 0 ASCII 0 Keyboard 0 Movement Arrows Keybinds 0 Fullscreen 2 Font 18/SmallcapsGlow Map View 76x50 Zoom Use 0% Tactical HUD 1 Map Filters NONE Filters NONE Steam 1 RUN: 56ae98ae-5d77-4e1b-a4f0-6e9aa39034b6